bitfinex/quotes_SOLUSD_20251226
["timestamp","ask_amount","ask_price","bid_price","bid_amount"]
[1766749774553,11.87289935,123.46,123.44,0.2]
[1766749775258,15.11452178,123.46,123.44,0.2]
[1766749775571,15.11452178,123.46,123.44,0.92]
[1766749776367,15.11452178,123.46,123.44,0.2]
[1766749777345,15.11452178,123.46,123.44,0.92]
[1766749777665,3.40287755,123.45,123.43,0.1]
[1766749777862,3.77287755,123.45,123.43,0.1]
[1766749778256,3.40287755,123.45,123.43,0.82]
[1766749779251,15.11452178,123.46,123.43,0.82]
[1766749779968,13.89119366,123.46,123.43,0.82]
[1766749781285,11.71164423,123.46,123.43,0.82]
[1766749781474,13.89119366,123.46,123.43,0.82]
[1766749784989,2.17954943,123.45,123.43,0.82]
[1766749786177,2.54954943,123.45,123.43,0.82]
[1766749786590,2.17954943,123.45,123.43,0.82]
[1766749791974,10.28026919,123.45,123.43,0.82]
[1766749792184,10.28026919,123.45,123.43,0.1]
[1766749792381,2.17954943,123.44,123.42,0.77]
[1766749793178,10.28080688,123.44,123.42,0.77]
[1766749793784,30.89924259,123.44,123.42,0.77]
[1766749794173,31.26924259,123.44,123.42,0.77]
[1766749794999,2.17954943,123.43,123.42,0.77]
[1766749795303,2.17954943,123.43,123.42,0.1]
[1766749796599,5.42169735,123.43,123.42,0.1]
[1766749797491,13.79364544,123.43,123.4,0.1]
[1766749797695,13.79364544,123.43,123.4,0.77]
[1766749798294,2.17954943,123.42,123.4,0.77]
[1766749798492,2.44954943,123.42,123.4,0.77]
[1766749798693,5.42222301,123.42,123.4,0.77]
[1766749799202,3.24267358,123.42,123.4,0.77]
[1766749799423,10.55149752,123.43,123.4,0.77]
[1766749799579,0.68,123.46,123.42,2.17954943]
[1766749799783,2.85954943,123.46,123.42,2.17954943]
[1766749800188,2.85954943,123.46,123.43,0.67]
[1766749800707,17.08406683,123.47,123.43,2.17954943]
[1766749800883,20.23892306,123.53,123.47,0.67]
[1766749801204,0.68,123.51,123.49,0.67]
[1766749801705,8.77659112,123.51,123.49,0.67]
[1766749801898,8.77659112,123.51,123.48,2.84954943]
[1766749802882,8.77659112,123.51,123.48,0.67]
[1766749804507,0.68,123.51,123.48,2.17954943]
[1766749804808,0.68,123.51,123.49,0.67]
[1766749805593,0.68,123.51,123.49,2.84954943]
[1766749806680,0.68,123.51,123.49,0.67]
[1766749807190,8.0961131,123.52,123.48,2.17954943]
[1766749807917,10.27566253,123.52,123.47,10.27819258]
[1766749808220,8.0961131,123.52,123.48,2.17954943]
[1766749809420,14.78,123.53,123.49,2.17954943]
[1766749809621,22.41334008,123.56,123.52,2.17954943]
[1766749809911,46.70975635,123.56,123.52,2.17954943]
[1766749810207,44.53020692,123.56,123.52,2.17954943]
[1766749810588,8.09409459,123.55,123.52,2.17954943]
[1766749810799,8.09409459,123.55,123.49,33.314894]
[1766749810800,8.09409459,123.55,123.53,2.17954943]
[1766749811733,8.09308281,123.57,123.54,2.17954943]
[1766749812512,8.09308281,123.57,123.53,2.17954943]
[1766749813341,33.2471079,123.58,123.53,2.17954943]
[1766749813529,33.2471079,123.58,123.54,2.17954943]
[1766749813902,10.37164342,123.58,123.54,2.17954943]
[1766749814906,10.37164342,123.58,123.53,10.27463865]
[1766749815225,0.1,123.58,123.55,2.17954943]
[1766749815823,0.1,123.58,123.56,6.75e-06]
[1766749816527,0.1,123.58,123.53,44.52458052]
[1766749816725,0.1,123.58,123.56,1.39178512]
[1766749817031,0.1,123.58,123.56,2.17954943]
[1766749818751,0.1,123.59,123.57,2.17954943]
[1766749819052,0.1,123.59,123.56,14.78]
[1766749819439,0.1,123.61,123.58,2.17954943]
[1766749819755,0.1,123.61,123.6,2.17954943]
[1766749819953,1e-08,123.61,123.6,8.09061488]
[1766749820151,1e-08,123.61,123.6,10.27016431]
[1766749820346,0.1,123.62,123.6,10.27016431]
[1766749820551,0.1,123.62,123.59,22.87123133]
[1766749820759,0.1,123.62,123.59,10.27078076]
[1766749820929,0.1,123.62,123.6,14.78]
[1766749823258,0.1,123.62,123.6,25.05012175]
[1766749823450,0.1,123.63,123.61,2.17954943]
[1766749824560,0.1,123.63,123.6,25.05012175]
[1766749824959,0.1,123.63,123.58,10.36702597]
[1766749825146,2.27954943,123.63,123.59,14.78]
[1766749827468,8.18865162,123.63,123.59,14.78]
[1766749827657,10.36820105,123.63,123.59,14.78]
[1766749828361,2.17954943,123.62,123.59,14.78]
[1766749828944,2.17954943,123.6,123.56,24.2787197]
[1766749829144,2.17954943,123.58,123.54,22.87412738]
[1766749829861,26.46416512,123.6,123.55,10.27282269]
[1766749830052,2.17954943,123.6,123.55,10.27282269]
[1766749831045,2.17954943,123.6,123.55,8.09327326]
[1766749831551,2.17954943,123.59,123.55,8.09327326]
[1766749833974,2.17954943,123.6,123.55,10.27282269]
[1766749835374,2.17954943,123.59,123.55,8.09327326]
[1766749835753,33.14094795,123.6,123.55,8.09327326]
[1766749835960,10.27035813,123.6,123.55,8.09327326]
[1766749836349,34.55497382,123.6,123.55,22.87327326]
[1766749836991,34.55497382,123.6,123.55,14.78]
[1766749838554,2.17954943,123.59,123.55,14.78]
[1766749838754,34.55497382,123.6,123.55,22.87386837]
[1766749841078,0.69,123.59,123.56,0.72]
[1766749841770,10.27035813,123.6,123.56,0.72]
[1766749841976,0.69,123.59,123.56,0.72]
[1766749848882,8.0908087,123.6,123.56,8.09312824]
[1766749849082,4.06752909,123.6,123.57,0.67]
[1766749849378,4.06752909,123.6,123.57,8.7625046]
[1766749849763,0.67,123.6,123.57,8.7625046]
[1766749849983,0.67,123.61,123.58,0.67]
[1766749850187,32.39254663,123.62,123.58,0.67]
[1766749850383,0.67,123.62,123.58,14.78]
[1766749850589,0.67,123.62,123.59,0.67]
[1766749851674,0.77,123.63,123.6,0.67]
[1766749853685,0.77,123.63,123.61,0.67]
[1766749853887,0.1,123.63,123.61,4.06752909]
[1766749854793,0.1,123.63,123.61,0.67]
[1766749855109,0.77,123.63,123.59,8.09102872]
[1766749855405,0.67,123.62,123.58,22.87175487]
[1766749855566,0.67,123.61,123.58,23.54175487]
[1766749855885,0.67,123.61,123.58,26.93928396]
[1766749856267,3.49752909,123.63,123.59,0.67]
[1766749856490,0.67,123.62,123.59,0.67]
[1766749862797,8.75930933,123.62,123.59,0.67]
[1766749862976,0.67,123.62,123.59,0.67]
[1766749863408,0.67,123.62,123.59,4.06752909]
[1766749865812,0.67,123.62,123.59,0.67]
[1766749873004,11.58643688,123.63,123.58,22.85175487]
[1766749876320,0.1,123.63,123.58,26.24928396]
[1766749876531,3.49752909,123.63,123.58,14.76]
[1766749877419,3.49752909,123.63,123.58,22.85177521]
[1766749878973,0.1,123.63,123.58,22.85177521]
[1766749883176,8.18865162,123.63,123.58,22.85177521]
[1766749890571,3.49752909,123.63,123.58,22.85177521]
[1766749891683,11.58675704,123.63,123.58,22.85177521]
[1766749892185,8.18922795,123.63,123.58,22.85177521]
[1766749892395,11.58675704,123.63,123.58,22.85177521]
[1766749895669,13.5477463,123.62,123.58,22.85177521]
[1766749895869,8.08933052,123.62,123.58,22.85177521]
[1766749897189,0.1,123.63,123.58,22.85177521]
[1766749897366,5.45856044,123.62,123.58,22.85177521]
[1766749897571,3.49752909,123.63,123.58,22.85177521]
[1766749899892,8.18885132,123.63,123.58,22.85177521]
[1766749900091,8.18885132,123.63,123.58,26.2493043]
[1766749901997,0.1,123.63,123.58,25.02501711]
[1766749902177,5.56016692,123.63,123.58,25.02501711]
[1766749902575,5.56016692,123.63,123.59,2.1732419]
[1766749902872,7.73340882,123.63,123.58,22.85177521]
[1766749903071,2.2732419,123.63,123.58,25.02501711]
[1766749905377,10.36246997,123.63,123.58,22.85177521]
[1766749910799,0.1,123.63,123.58,25.02501711]
[1766749912016,5.56104957,123.63,123.58,25.02501711]
[1766749913515,8.18898218,123.63,123.58,22.85177521]
[1766749913706,8.18898218,123.63,123.58,25.02501711]
[1766749915509,0.1,123.63,123.58,25.02501711]
[1766749915708,5.56090508,123.63,123.58,25.02501711]
[1766749918610,13.64984768,123.63,123.58,25.02501711]
[1766749918808,8.1889426,123.63,123.58,25.02501711]
[1766749919110,10.3621845,123.63,123.58,25.02501711]
[1766749920206,0.1,123.63,123.58,25.02501711]
[1766749920408,5.56097854,123.63,123.58,25.02501711]
[1766749921912,5.56097854,123.63,123.58,10.26501711]
[1766749922085,5.56097854,123.63,123.58,25.02501711]
[1766749922289,13.64980885,123.63,123.58,22.85177521]
[1766749922490,10.36207221,123.63,123.58,8.09177521]
[1766749922916,2.1732419,123.62,123.58,22.85177521]
[1766749924198,10.26263028,123.62,123.58,22.85177521]
[1766749925916,2.1732419,123.62,123.58,22.85177521]
[1766749926814,8.18894549,123.63,123.58,22.85177521]
[1766749927014,5.46136924,123.62,123.58,25.02501711]
[1766749927515,8.18894549,123.63,123.58,25.02501711]
[1766749927912,8.18894549,123.63,123.58,22.85177521]
[1766749928114,0.1,123.63,123.58,22.85177521]
[1766749928307,5.46135386,123.62,123.58,22.85177521]
[1766749931219,15.72406238,123.62,123.58,14.76]
[1766749931396,10.26270852,123.62,123.58,14.76]
[1766749933224,0.1,123.63,123.58,45.25438808]
[1766749933420,5.560668,123.63,123.58,45.25438808]
[1766749936026,0.1,123.64,123.61,10.43767296]
[1766749936214,0.1,123.64,123.62,14.76]
[1766749936416,2.2732419,123.64,123.61,10.43767296]
[1766749936608,0.1,123.64,123.61,10.43767296]
[1766749936805,0.1,123.64,123.61,12.61091486]
[1766749937030,0.1,123.65,123.63,2.1732419]
[1766749937312,0.1,123.66,123.64,2.1732419]
[1766749938200,0.1,123.66,123.64,10.26116665]
[1766749939536,0.1,123.67,123.65,2.1732419]
[1766749939711,0.1,123.67,123.64,10.26116665]
[1766749940227,2.2732419,123.67,123.63,8.08838762]
[1766749940434,2.2732419,123.67,123.63,22.84838762]
[1766749941318,2.2732419,123.67,123.63,25.02162952]
[1766749941833,0.1,123.67,123.63,25.02162952]
[1766749942023,2.2732419,123.67,123.63,22.84838762]
[1766749942213,0.1,123.67,123.63,25.02162952]
[1766749945238,2.1732419,123.64,123.59,2.1732419]
[1766749945441,2.1732419,123.64,123.6,14.76]
[1766749945860,2.1732419,123.64,123.59,8.09107033]
[1766749946034,2.1732419,123.63,123.6,14.76]
[1766749948530,2.1732419,123.64,123.6,14.76]
[1766749950726,10.26127982,123.64,123.6,14.76]
[1766749951847,10.26127982,123.64,123.6,22.85061293]
[1766749952750,8.08672303,123.66,123.61,2.1732419]
[1766749952946,8.08672303,123.66,123.62,2.1732419]
[1766749954148,0.1,123.67,123.62,2.1732419]
[1766749954348,5.54387614,123.67,123.62,2.1732419]
[1766749954753,5.54387614,123.67,123.63,2.1732419]
[1766749954936,8.1860713,123.67,123.63,2.1732419]
[1766749955333,10.3593132,123.67,123.62,8.08891075]
[1766749955633,0.1,123.67,123.64,2.1732419]
[1766749955827,0.1,123.67,123.63,10.2618167]
[1766749956151,2.2732419,123.67,123.62,25.02227613]
[1766749957152,10.35938481,123.67,123.62,25.02227613]
[1766749957852,8.18614291,123.67,123.62,25.02227613]
[1766749959147,10.35938481,123.67,123.62,25.02227613]
[1766749959448,8.18614291,123.67,123.63,10.26181918]
[1766749961037,0.1,123.67,123.63,10.26181918]
[1766749961358,0.1,123.67,123.64,2.1732419]
[1766749962031,0.1,123.67,123.64,3.39284896]
[1766749962233,0.2,123.7,123.68,10.43767296]
[1766749962453,0.2,123.72,123.69,3.39284896]
[1766749962643,0.2,123.72,123.7,3.39284896]
[1766749963243,8.08184822,123.74,123.71,3.39284896]
[1766749963448,8.08184822,123.74,123.69,8.08472571]
[1766749963645,8.08184822,123.74,123.71,3.39284896]
[1766749965169,0.1,123.75,123.72,3.39284896]
[1766749966339,0.1,123.75,123.71,3.39284896]
[1766749966749,3.49284896,123.75,123.71,3.39284896]
[1766749967162,8.08146112,123.74,123.71,3.39284896]
[1766749967961,8.18091609,123.75,123.72,3.39284896]
[1766749969765,8.18091609,123.75,123.71,3.39284896]
[1766749972255,8.18091609,123.75,123.7,22.84406568]
[1766749972565,8.18091609,123.75,123.71,3.39284896]
[1766749972759,11.57376505,123.75,123.71,3.39284896]
[1766749972941,0.1,123.75,123.73,3.39284896]
[1766749973344,0.1,123.75,123.72,3.39284896]
[1766749977055,0.1,123.75,123.71,18.15284896]
[1766749977574,3.49284896,123.75,123.71,18.15284896]
[1766749978263,8.08146112,123.74,123.71,3.39284896]
[1766749978868,11.57393658,123.75,123.7,8.08400017]
[1766749979068,11.57393658,123.75,123.71,3.39284896]
[1766749979349,8.18108762,123.75,123.71,3.39284896]
[1766749982874,0.1,123.75,123.71,3.39284896]
[1766749983076,0.1,123.75,123.7,8.08400017]
[1766749983277,0.1,123.75,123.71,3.39284896]
[1766749984456,3.49284896,123.75,123.7,3.39284896]
[1766749985677,11.57404029,123.75,123.7,11.47681717]
[1766749986280,11.57404029,123.75,123.7,3.39284896]
[1766749986573,3.39284896,123.74,123.69,26.23704403]
[1766749986874,31.77606049,123.75,123.69,26.23704403]
[1766749987262,28.38321153,123.75,123.69,26.23704403]
[1766749987480,3.39284896,123.74,123.69,3.39284896]
[1766749987678,3.39284896,123.74,123.69,18.15284896]
[1766749987869,11.47491345,123.74,123.69,18.15284896]
[1766749988570,11.47491345,123.74,123.69,26.23752392]
[1766749988883,11.47491345,123.74,123.69,22.84467496]
[1766749989081,11.47491345,123.74,123.69,26.23752392]
[1766749991987,11.47491345,123.74,123.7,3.39284896]
[1766749992288,8.08206449,123.74,123.7,3.39284896]
[1766749993779,8.18097908,123.75,123.71,3.39284896]
[1766749994174,8.18097908,123.75,123.72,3.39284896]
[1766749995290,0.1,123.75,123.72,3.39284896]
[1766749996287,0.1,123.75,123.71,3.39284896]
[1766749998584,3.49284896,123.75,123.71,3.39284896]
[1766749998788,3.49284896,123.75,123.7,11.47687973]
[1766749999163,0.1,123.75,123.7,11.47687973]
[1766749999364,11.57397903,123.75,123.7,26.23687973]
[1766750000169,8.18113007,123.75,123.7,26.23687973]
[1766750000488,11.57397903,123.75,123.7,26.23687973]
[1766750001186,8.18113007,123.75,123.71,3.39284896]
[1766750001391,0.1,123.75,123.72,3.39284896]
[1766750001688,0.1,123.75,123.73,3.39284896]
[1766750001877,8.18111286,123.75,123.71,3.39284896]
[1766750002080,11.57396182,123.75,123.7,3.39284896]
[1766750002262,3.39284896,123.74,123.69,87.73734869]
[1766750002458,11.47452518,123.74,123.69,87.73734869]
[1766750002885,8.08167622,123.74,123.7,3.39284896]
[1766750003487,8.08167622,123.74,123.7,11.47675747]
[1766750003791,11.57392216,123.75,123.7,11.47675747]
[1766750005789,8.1810732,123.75,123.71,3.39284896]
[1766750008797,8.1810732,123.75,123.72,3.39284896]
[1766750011701,0.1,123.75,123.72,3.39284896]
[1766750011994,5.55098018,123.75,123.72,3.39284896]
[1766750012199,8.94382914,123.75,123.7,22.84390851]
[1766750012407,3.49284896,123.75,123.71,3.39284896]
[1766750013495,11.5740076,123.75,123.69,8.08451557]
[1766750013797,11.5740076,123.75,123.7,14.76]
[1766750013798,8.84459957,123.74,123.7,14.76]
[1766750013995,8.84459957,123.74,123.69,11.47736453]
[1766750013996,3.39284896,123.74,123.69,11.47736453]
[1766750014194,3.39284896,123.74,123.7,3.39284896]
[1766750015697,11.47470473,123.74,123.7,3.39284896]
[1766750015894,11.47470473,123.74,123.69,18.15284896]
[1766750016497,8.08185577,123.74,123.69,18.15284896]
[1766750016705,8.08185577,123.74,123.7,3.39284896]
[1766750017302,11.47470473,123.74,123.7,3.39284896]
[1766750019101,11.47470473,123.74,123.69,14.76]
[1766750019305,11.47470473,123.74,123.7,3.39284896]
[1766750021400,20.3020202,123.75,123.7,3.39284896]
[1766750021605,8.84431042,123.74,123.7,3.39284896]
[1766750021785,3.39284896,123.74,123.7,3.39284896]
[1766750023005,20.3020202,123.75,123.7,3.39284896]
[1766750023307,20.3020202,123.75,123.71,3.39284896]
[1766750023308,5.45137898,123.74,123.71,3.39284896]
[1766750023480,5.45137898,123.74,123.7,8.08394701]
[1766750023686,13.53289276,123.74,123.71,3.39284896]
[1766750023885,8.08151378,123.74,123.7,3.39284896]
[1766750024086,8.08151378,123.74,123.7,2.1693414]
[1766750027513,2.1693414,123.74,123.7,2.1693414]
[1766750029215,10.25140953,123.74,123.7,2.1693414]
[1766750029415,10.25140953,123.74,123.69,25.01379986]
[1766750032315,0.1,123.75,123.71,2.1693414]
[1766750032497,0.1,123.75,123.72,2.1693414]
[1766750034711,0.1,123.75,123.73,2.1693414]
[1766750035217,0.81,123.75,123.73,2.1693414]
[1766750036520,0.1,123.76,123.74,2.8193414]
[1766750036719,0.1,123.76,123.75,2.1693414]
[1766750037321,0.1,123.76,123.74,2.8193414]
[1766750039520,0.71,123.79,123.76,0.65]
[1766750039813,0.71,123.79,123.76,2.1693414]
[1766750041607,0.71,123.79,123.75,17.5793414]
[1766750042108,0.71,123.79,123.75,25.66007069]
[1766750042798,0.71,123.79,123.76,2.1693414]
[1766750045135,0.71,123.79,123.76,2.8193414]
[1766750045423,0.71,123.79,123.77,2.1693414]
[1766750045619,0.1,123.8,123.78,2.8193414]
[1766750046123,0.71,123.79,123.77,15.41]
[1766750046503,0.71,123.79,123.77,17.5793414]
[1766750047200,0.71,123.79,123.76,8.08011909]
[1766750047201,8.78821464,123.79,123.76,14.76]
[1766750047424,8.78821464,123.79,123.76,17.5793414]
[1766750050940,8.78821464,123.79,123.76,15.41]
[1766750053527,8.07821464,123.79,123.76,15.41]
[1766750053826,0.71,123.78,123.76,15.41]
[1766750054126,0.71,123.78,123.76,17.5793414]
[1766750057126,8.07821464,123.79,123.76,17.5793414]
[1766750057326,8.76821464,123.79,123.76,17.5793414]
[1766750057827,0.69,123.79,123.76,17.5793414]
[1766750058614,0.69,123.79,123.76,17.5593414]
[1766750060027,0.69,123.79,123.76,2.8193414]
[1766750060610,0.69,123.79,123.75,25.69009929]
[1766750061826,0.69,123.79,123.75,10.95009929]
[1766750062033,0.69,123.79,123.75,25.69009929]
[1766750062217,0.69,123.79,123.75,24.99009929]
[1766750062419,0.69,123.79,123.76,0.7]
[1766750062931,0.69,123.79,123.76,2.8693414]
[1766750063245,0.79,123.8,123.77,2.8693414]
[1766750066838,0.79,123.8,123.78,2.1693414]
[1766750067041,0.1,123.8,123.78,2.1693414]
[1766750067542,0.1,123.8,123.77,2.1693414]
[1766750069324,0.1,123.8,123.76,10.24916368]
[1766750070258,0.1,123.8,123.78,2.1693414]
[1766750070851,6.8431584,123.84,123.79,2.1693414]
[1766750071041,6.8431584,123.84,123.8,2.1693414]
[1766750072249,6.8431584,123.84,123.81,2.1693414]
[1766750073245,6.8431584,123.84,123.81,16.9093414]
[1766750081564,6.8431584,123.84,123.82,2.1693414]
[1766750083960,6.8431584,123.84,123.83,3.38303701]
[1766750084669,6.8431584,123.84,123.8,61.5]
[1766750084851,14.91835531,123.84,123.81,3.38303701]
[1766750085038,14.91835531,123.84,123.8,76.24]
[1766750085241,14.91835531,123.84,123.81,3.38303701]
[1766750086456,14.91835531,123.84,123.8,79.62303701]
[1766750086863,6.8431584,123.84,123.82,3.38303701]
[1766750087565,6.8431584,123.84,123.83,3.38303701]
[1766750088850,8.07365509,123.86,123.83,3.38303701]
[1766750089054,8.17325609,123.87,123.84,3.38303701]
[1766750090955,8.17325609,123.87,123.83,3.38303701]
[1766750091348,11.5562931,123.87,123.83,3.38303701]
[1766750095777,0.1,123.87,123.83,3.38303701]
[1766750095951,0.1,123.87,123.84,3.38303701]
[1766750101650,0.1,123.87,123.82,22.81597875]
[1766750101651,0.1,123.87,123.85,3.38303701]
[1766750101856,0.1,123.87,123.82,14.74]
[1766750102059,0.1,123.87,123.85,3.38303701]
[1766750102266,0.1,123.88,123.86,3.38303701]
[1766750102474,27.05867066,123.92,123.86,14.74]
[1766750102475,6.88347393,123.92,123.86,14.74]
[1766750102681,35.1275894,123.92,123.86,14.74]
[1766750102857,3.38303701,123.9,123.84,14.74]
[1766750103058,3.38303701,123.9,123.85,3.38303701]
[1766750103766,8.07138199,123.9,123.86,3.38303701]
[1766750107584,8.07138199,123.9,123.87,3.38303701]
[1766750109689,8.07138199,123.9,123.86,3.38303701]
[1766750110770,11.454419,123.9,123.86,3.38303701]
[1766750112085,8.07138199,123.9,123.86,3.38303701]
[1766750112264,11.454419,123.9,123.86,3.38303701]
[1766750113581,8.07138199,123.9,123.87,3.38303701]
[1766750113885,8.07138199,123.9,123.86,3.38303701]
[1766750114087,3.38303701,123.89,123.85,3.38303701]
[1766750114766,31.63198155,123.9,123.85,3.38303701]
[1766750115083,8.07138199,123.9,123.86,3.38303701]
[1766750115473,8.07138199,123.9,123.87,3.38303701]
[1766750117885,8.07056216,123.91,123.88,3.38303701]
[1766750118090,8.07056216,123.91,123.87,3.38303701]
[1766750118399,11.45359917,123.91,123.87,3.38303701]
[1766750118863,11.45359917,123.91,123.86,11.45655701]
[1766750120184,3.38303701,123.9,123.86,3.38303701]
[1766750120369,3.38303701,123.89,123.84,11.45790299]
[1766750120562,3.38303701,123.89,123.84,26.19790299]
[1766750120968,3.38303701,123.88,123.84,3.38303701]
[1766750122305,11.45567226,123.88,123.84,3.38303701]
[1766750124284,11.45567226,123.88,123.8,46.51368553]
[1766750124285,3.38303701,123.85,123.8,3.38303701]
[1766750124581,3.38303701,123.85,123.8,26.20020567]
[1766750125688,11.45756686,123.85,123.8,26.20020567]
[1766750126486,11.45756686,123.85,123.81,3.38303701]
[1766750128674,11.45756686,123.85,123.8,26.20020567]
[1766750128881,3.38303701,123.84,123.8,26.20020567]
[1766750131197,3.38303701,123.85,123.8,26.20020567]
[1766750132284,3.38303701,123.84,123.8,14.74]
[1766750132994,3.38303701,123.84,123.8,18.12303701]
[1766750134497,11.45804869,123.84,123.8,18.12303701]
[1766750137508,11.45804869,123.84,123.79,8.077971]
[1766750137711,11.45804869,123.84,123.8,3.38303701]
[1766750138394,3.38303701,123.86,123.82,3.38303701]
[1766750139304,11.45670513,123.86,123.82,3.38303701]
[1766750139911,11.45670513,123.86,123.81,3.38303701]
[1766750140111,11.45670513,123.86,123.8,8.07713741]
[1766750140410,11.45670513,123.86,123.81,3.38303701]
[1766750141589,11.45341066,123.91,123.85,21.89499306]
[1766750141789,3.38303701,123.9,123.86,3.38303701]
[1766750142683,8.07037365,123.91,123.86,3.38303701]
[1766750142888,11.45430045,123.9,123.85,33.25195605]
[1766750143117,11.45430045,123.9,123.85,21.89499306]
[1766750143411,11.45430045,123.9,123.85,36.63499306]
[1766750143706,8.07045464,123.91,123.86,11.45632393]
[1766750143911,11.45349165,123.91,123.87,3.38303701]
[1766750146026,10.23415425,123.91,123.87,2.16369961]
[1766750146389,2.16369961,123.9,123.86,2.16369961]
[1766750147289,2.16369961,123.89,123.85,33.25177522]
[1766750147498,2.16369961,123.89,123.85,35.41547483]
[1766750148111,2.16369961,123.89,123.86,2.16369961]
[1766750148813,2.16369961,123.9,123.86,2.16369961]
[1766750150011,10.23500588,123.9,123.86,2.16369961]
[1766750151407,8.07037365,123.91,123.86,2.16369961]
[1766750151598,2.16369961,123.9,123.86,2.16369961]
[1766750152606,8.07102502,123.9,123.87,2.16369961]
[1766750153221,10.23431792,123.91,123.87,2.16369961]
[1766750155120,10.23431792,123.91,123.85,18.51177522]
[1766750155300,8.07061831,123.91,123.85,18.51177522]
[1766750155499,10.23431792,123.91,123.87,2.16369961]
[1766750156628,8.07061831,123.91,123.87,2.16369961]
[1766750156827,10.23431792,123.91,123.87,2.16369961]
[1766750157130,8.07061831,123.91,123.88,2.16369961]
[1766750159832,8.07061831,123.91,123.87,14.74]
[1766750160035,8.07061831,123.91,123.88,2.16369961]
[1766750174041,8.07061831,123.91,123.87,14.74]
[1766750174245,10.23431792,123.91,123.87,16.90369961]
[1766750174742,10.23431792,123.91,123.87,2.16369961]
[1766750176249,14.95346217,123.92,123.89,2.16369961]
[1766750177517,17.11716178,123.92,123.88,2.16369961]
[1766750178936,0.1,123.93,123.91,2.16369961]
[1766750180342,8.1692783,123.93,123.9,2.16369961]
[1766750182852,8.1692783,123.93,123.89,14.74]
[1766750183048,8.1692783,123.93,123.9,2.16369961]
[1766750183551,8.1692783,123.93,123.9,16.90369961]
[1766750184031,8.1692783,123.93,123.9,14.74]
[1766750184232,8.1692783,123.93,123.9,16.90369961]
[1766750186647,8.1692783,123.93,123.91,2.16369961]
[1766750188854,8.1692783,123.93,123.87,80.01040064]
[1766750189150,10.33297791,123.93,123.89,2.16369961]
[1766750189535,2.16369961,123.92,123.88,14.74]
[1766750189729,8.1692783,123.93,123.89,2.16369961]
[1766750189954,2.16369961,123.92,123.89,2.16369961]
[1766750190136,2.16369961,123.92,123.88,2.16369961]
[1766750191664,8.07037365,123.91,123.88,2.16369961]
[1766750195161,8.07037365,123.91,123.87,16.90369961]
[1766750200055,10.23407326,123.91,123.87,2.16369961]
[1766750201086,0.71,123.9,123.87,2.16369961]
[1766750201366,0.71,123.9,123.88,0.67]
[1766750203171,8.78116476,123.9,123.88,0.67]
[1766750205174,0.8,123.93,123.9,0.7]
[1766750205464,0.8,123.93,123.9,2.86369961]
[1766750205968,4.17952218,123.93,123.9,0.7]
[1766750206351,12.24866105,123.93,123.9,0.7]
[1766750207375,8.86913887,123.93,123.9,0.7]
[1766750207674,0.7,123.91,123.88,4.07952218]
[1766750208373,0.7,123.89,123.86,4.07952218]
[1766750208543,0.7,123.89,123.86,0.7]
[1766750208868,11.54866105,123.93,123.89,0.7]
[1766750209060,8.86913887,123.93,123.9,0.7]
[1766750210870,0.8,123.93,123.9,3.37952218]
[1766750211078,0.8,123.93,123.91,0.7]
[1766750211371,0.8,123.93,123.9,4.07952218]
[1766750211669,0.8,123.93,123.9,3.37952218]
[1766750211880,0.8,123.93,123.91,0.7]
[1766750213081,0.8,123.93,123.9,4.07952218]
[1766750213276,0.8,123.93,123.9,3.37952218]
[1766750213982,0.8,123.93,123.91,0.7]
[1766750214178,0.8,123.93,123.9,3.37952218]
[1766750214374,0.8,123.93,123.9,4.07952218]
[1766750214778,0.1,123.93,123.91,3.37952218]
[1766750215080,14.44303369,123.95,123.88,96.42009626]
[1766750215081,5.43976046,123.94,123.93,0.7]
[1766750215373,7.07500831,123.95,123.92,4.07952218]
[1766750215573,0.7,123.92,123.87,0.7]
[1766750215775,3.37952218,123.91,123.87,0.7]
[1766750215957,0.7,123.9,123.87,0.7]
[1766750216982,4.07952218,123.9,123.87,0.7]
[1766750217780,3.37952218,123.89,123.84,8.07451885]
[1766750217980,4.07952218,123.85,123.81,0.7]
[1766750218283,0.7,123.81,123.76,3.37952218]
[1766750218491,4.07952218,123.81,123.76,11.45954763]
[1766750218687,4.07952218,123.81,123.77,3.37952218]
[1766750218865,0.7,123.84,123.78,3.37952218]